fUST/lending_fUST_20260123
["ID","MTS","AMOUNT","RATE_DAILY","PERIOD"]
[403131301,1769181035026,-1432.07970287,0.0002127,83]
[403131302,1769181035036,-3000.0,0.0002127,2]
[403131303,1769181035047,-3000.0,0.0002128,2]
[403131304,1769181035057,-3000.0,0.0002129,2]
[403131305,1769181035067,-3000.0,0.000213,2]
[403131306,1769181035077,-1749.1,0.000213,2]
[403131307,1769181035086,-3000.0,0.0002131,2]
[403131308,1769181035095,-3000.0,0.0002132,2]
[403131309,1769181035105,-3000.0,0.0002133,2]
[403131310,1769181035115,-3000.0,0.0002134,2]
[403131311,1769181035126,-3000.0,0.0002135,2]
[403131312,1769181035136,-3000.0,0.0002136,2]
[403131313,1769181035146,-3000.0,0.0002137,2]
[403131314,1769181035156,-3000.0,0.0002138,2]
[403131315,1769181035166,-3000.0,0.0002139,2]
[403131316,1769181035175,-3000.0,0.000214,2]
[403131317,1769181035185,-3000.0,0.0002141,2]
[403131318,1769181035198,-3000.0,0.0002142,2]
[403131319,1769181035208,-4464.664168,0.0002143,2]
[403131320,1769181035218,-1432.07970287,0.00021523,85]
[403131321,1769181035227,-263.3816362,0.0002176,79]
[403131322,1769181035236,-1432.07970287,0.00021776,87]
[403131323,1769181035246,-153.7,0.000219,2]
[403131324,1769181035257,-282.5869349,0.00021918,5]
[403131325,1769181035267,-797.0,0.00021918,5]
[403131326,1769181035276,-51673.702538,0.00021918,30]
[403131327,1769181035285,-160.96,0.00022,2]
[403131328,1769181035295,-189.06,0.00022,7]
[403131329,1769181035304,-1432.07970287,0.00022028,90]
[403131330,1769181035314,-160.54500122,0.00022047,2]
[403131331,1769181035323,-391.37673203,0.0002213,2]
[403131332,1769181035332,-1000.0,0.00022132,10]
[403131333,1769181035342,-791.0,0.00022132,10]
[403131334,1769181035351,-1476.391501,0.00022213,30]
[403131335,1769181035361,-207.77614487,0.00022281,2]
[403131336,1769181035371,-1432.07970287,0.00022281,92]
[403131337,1769181035381,-797.0,0.00022466,5]
[403131338,1769181035391,-1432.07970287,0.00022534,94]
[403131339,1769181035400,-1432.07970287,0.00022787,96]
[403131340,1769181035411,-3878.0,0.0002281,3]
[403131341,1769181035431,-160.0,0.00022862,3]
[403131342,1769181035447,-729.0,0.00022862,3]
[403131343,1769181035457,-1041.66666667,0.00023,3]
[403131344,1769181035471,-797.0,0.00023014,5]
[403131345,1769181035481,-263.3816362,0.00023031,94]
[403131346,1769181035492,-1432.07970287,0.00023039,98]
[403131347,1769181035502,-3878.0,0.0002304,3]
[403131348,1769181035521,-294.0,0.00023129,10]
[403131349,1769181035541,-693.5,0.00023129,10]
[403131350,1769181035561,-729.0,0.00023148,3]
[403131351,1769181035582,-3878.0,0.0002319,3]
[403131352,1769181035603,-160.0,0.0002322,3]
[403131353,1769181035620,-729.0,0.00023254,3]
[403131354,1769181035632,-153.7,0.00023265,2]
[403131355,1769181035644,-1432.07970287,0.00023292,101]
[403131356,1769181035657,-207.77614487,0.00023302,2]
[403131357,1769181035670,-3878.0,0.0002336,3]
[403131358,1769181035682,-1749.1,0.000235,14]
[403131359,1769181035692,-3878.0,0.00023502,3]
[403131360,1769181035704,-729.0,0.00023502,3]
[403131361,1769181035713,-1432.07970287,0.00023545,103]
[403131362,1769181035724,-2003.9,0.00023546,2]
[403131363,1769181035735,-797.0,0.00023562,5]
[403131364,1769181035745,-168.60291493,0.00023572,120]
[403131365,1769181035755,-3878.0,0.00023645,3]
[403131366,1769181035764,-14763.915011,0.00023671,30]
[403131367,1769181035773,-729.0,0.0002368,3]
[403131368,1769181035783,-163.52,0.00023742,2]
[403131369,1769181035792,-3878.0,0.0002377,3]
[403131370,1769181035801,-1432.07970287,0.00023798,105]
[403131371,1769181035810,-740.0,0.00023894,3]
[403131372,1769181035820,-3779.0,0.00023965,3]
[403131373,1769181035830,-178.0,0.00023978,2]
[403131374,1769181035840,-1432.07970287,0.00024051,107]
[403131375,1769181035850,-189.06,0.000241,7]
[403131376,1769181035860,-797.0,0.0002411,5]
[403131377,1769181035869,-428.45452769,0.0002413,2]
[403131378,1769181035879,-729.0,0.0002418,3]
[403131379,1769181035888,-1432.07970287,0.00024303,110]
[403131380,1769181035898,-3878.0,0.0002432,3]
[403131381,1769181035907,-3878.0,0.0002432,3]
[403131382,1769181035917,-207.77614487,0.00024323,2]
[403131383,1769181035927,-1000.0,0.00024345,10]
[403131384,1769181035936,-1000.0,0.00024345,10]
[403131385,1769181035952,-1041.66666667,0.000244,3]
[403131386,1769181035961,-3878.0,0.00024402,3]
[403131387,1769181035971,-3878.0,0.00024402,3]
[403131388,1769181035980,-188.4579566,0.00024432,15]
[403131389,1769181035990,-153.7,0.00024631,2]
[403131390,1769181036000,-797.0,0.00024658,5]
[403131391,1769181036009,-407.15,0.000247,3]
[403131392,1769181036019,-729.0,0.00024708,3]
[403131393,1769181036028,-3878.0,0.00024708,3]
[403131394,1769181036037,-610434.631326,0.000249,2]
[403131395,1769181036047,-29768.0,0.00025,30]
[403131396,1769181036056,-19997.0,0.00025,20]
[403131397,1769181036066,-1041.66666667,0.00025,30]
[403131398,1769181036075,-729.0,0.00025028,3]
[403131399,1769181036084,-3878.0,0.00025028,3]
[403131400,1769181036093,-729.0,0.00025085,3]
[403131401,1769181036102,-1749.1,0.000251,14]
[403131402,1769181036111,-797.0,0.00025205,5]
[403131403,1769181036120,-3878.0,0.00025221,3]
[403131404,1769181036129,-207.77614487,0.00025344,2]
[403131405,1769181036138,-38000.0,0.0002541,7]
[403131406,1769181036148,-38000.0,0.00025418,7]
[403131407,1769181036157,-38000.0,0.00025427,7]
[403131408,1769181036166,-37797.80865737,0.00025436,7]
[403131547,1769181037686,150.0,7.399e-05,2]
[403131578,1769181038088,150.0,8.071e-05,2]
[403131613,1769181038536,-5000.0,0.00012368,2]
[403131614,1769181038547,-215.922,0.00017593,2]
[403131615,1769181038557,-233.70074866,0.0002102,3]
[403131619,1769181038658,-64.08925134,0.0002102,3]
[403131621,1769181038667,-595.58,0.0002239,3]
[403131623,1769181038677,-202.19134263,0.00025436,7]
[403131625,1769181038686,-879.5,0.00025436,10]
[403131627,1769181038696,-1198.26341169,0.00025445,7]
[403131660,1769181039014,129.0911308,8.744e-05,2]
[403131670,1769181039102,20.9088692,8.744e-05,2]
[403131709,1769181039460,150.0,9.416e-05,2]
[403131755,1769181039889,150.0,0.00010089,2]
[403131805,1769181040324,156.49,0.00010762,2]
[403131849,1769181040731,182.57,0.00011434,2]
[403131862,1769181040843,-18770.38566571,0.00025445,7]
[403131875,1769181040959,-2225.94082858,0.00025445,7]
[403131884,1769181041031,-3e-08,0.00025445,7]
[403131886,1769181041042,-3502.94299894,0.00025445,7]
[403132029,1769181045041,-208.65,0.00012107,2]
[403132031,1769181045051,-12302.46709505,0.00025445,7]
[403132033,1769181045060,-38000.0,0.00025454,7]
[403132035,1769181045069,-8748.19,0.00025461,10]
[403132037,1769181045078,-2787.24786653,0.00025462,7]
[403132040,1769181045089,-8522.75858177,0.00025462,7]
[403132042,1769181045100,-2400.71478538,0.00025462,7]
[403132044,1769181045111,-16271.96194694,0.00025462,7]
[403132176,1769181046681,-187.78006525,0.00017542,2]
[403132178,1769181046691,-893.42,0.00025461,3]
[403132180,1769181046700,-7856.81189998,0.00025462,7]
[403132185,1769181046743,-160.5049194,0.00025462,7]
[403132187,1769181046753,-351.4268196,0.00025471,7]
[403132189,1769181046765,-2379.51259162,0.00025471,7]
[403132191,1769181046777,-15112.63573028,0.00025471,7]
[403132194,1769181046791,-8284.24779496,0.00025471,7]
[403133099,1769181169348,150.0,7.902e-05,2]
[403133101,1769181234153,150.0,8.11e-05,2]
[403133102,1769181282257,447.74,0.00011925,2]
[403133168,1769181446033,5000.0,0.00011925,2]
[403133185,1769181660391,4252.27,0.00011925,2]
[403133186,1769181660475,747.73,0.00011925,2]
[403133188,1769181668152,197.5315497,0.00011925,2]
[403133189,1769181676756,1386.74419406,0.00011925,2]
[403133197,1769181684519,5000.0,0.00011925,2]
[403133214,1769181706861,2668.00425624,0.00011925,2]
[403133215,1769181706948,2331.99574376,0.00011925,2]
[403133218,1769181716423,-590.0,0.00012046,2]
[403133219,1769181716458,-161.576794,0.00012107,2]
[403133220,1769181716483,-248.423206,0.00012167,2]
[403133221,1769181719770,-243.01391606,0.00012167,2]
[403133222,1769181719794,-756.98608394,0.00012168,2]
[403133223,1769181721011,-1000.0,0.00012168,2]
[403133224,1769181721367,-1000.0,0.00012168,2]
[403133225,1769181721713,-1000.0,0.00012168,2]
[403133226,1769181722058,-1000.0,0.00012168,2]
[403133228,1769181722446,-1000.0,0.00012168,2]
[403133233,1769181723861,-1000.0,0.00012168,2]
[403133234,1769181724945,-1000.0,0.00012168,2]
[403133235,1769181726279,-1000.0,0.00012168,2]
[403133236,1769181727942,-1000.0,0.00012168,2]
[403133237,1769181756672,-1000.0,0.00012046,2]
[403133238,1769181758072,-1000.0,0.00012046,2]
[403133239,1769181758420,-1000.0,0.00012046,2]
[403133240,1769181758781,-1000.0,0.00012046,2]
[403133241,1769181759146,7668.01425624,0.000119,2]
[403133242,1769181759231,5880.98574376,0.000119,2]
[403133243,1769181759264,-1000.0,0.00012046,2]
[403133244,1769181759495,-1000.0,0.00012169,2]
[403133245,1769181759859,-1000.0,0.00012169,2]
[403133246,1769181760202,-1000.0,0.00012169,2]
[403133247,1769181760559,-1000.0,0.00012169,2]
[403133248,1769181760913,-1000.0,0.00012169,2]
[403133249,1769181761282,-1000.0,0.00012169,2]
[403133250,1769181761638,-1000.0,0.00012169,2]
[403133251,1769181762060,-1000.0,0.00012169,2]
[403133252,1769181762348,-1000.0,0.00012169,2]
[403133253,1769181762710,-1000.0,0.00012169,2]
[403133254,1769181763082,-1000.0,0.00012169,2]
[403133255,1769181763429,-1000.0,0.00012169,2]
[403133256,1769181763787,-1000.0,0.00012169,2]
[403133257,1769181764151,-1000.0,0.00012169,2]
[403133258,1769181764514,-1000.0,0.00012169,2]
[403133259,1769181764894,-1000.0,0.00012169,2]
[403133260,1769181765256,-1000.0,0.00012169,2]
[403133261,1769181765662,-1000.0,0.00012169,2]
[403133262,1769181766027,-1000.0,0.00012169,2]
[403133263,1769181766419,-1000.0,0.00012169,2]
[403133264,1769181766723,-1000.0,0.00012169,2]
[403133265,1769181767139,-1000.0,0.00012169,2]
[403133266,1769181767582,-1000.0,0.00012169,2]
[403133267,1769181768050,-1000.0,0.00012169,2]
[403133268,1769181768268,-1000.0,0.00012169,2]
[403133269,1769181768674,-1000.0,0.00012169,2]
[403133270,1769181769011,-1000.0,0.00012169,2]
[403133271,1769181769389,-1000.0,0.00012169,2]
[403133272,1769181769738,-1000.0,0.00012169,2]
[403133273,1769181770107,-1000.0,0.00012169,2]
[403133274,1769181771420,-1000.0,0.00012169,2]
[403133275,1769181771763,-1000.0,0.00012169,2]
[403133276,1769181772159,-1000.0,0.00012169,2]
[403133277,1769181772516,-1000.0,0.00012169,2]
[403133278,1769181775121,-1000.0,0.00012047,2]
[403133279,1769181776152,-1000.0,0.00012047,2]
[403133280,1769181777123,-1000.0,0.00012047,2]
[403133281,1769181778135,-1000.0,0.00012047,2]
[403133282,1769181779165,-1000.0,0.00012047,2]
[403133283,1769181780262,-1000.0,0.00012169,2]
[403133284,1769181781358,-1000.0,0.00012169,2]
[403133285,1769181782432,-1000.0,0.00012169,2]
[403133286,1769181783570,-1000.0,0.00012169,2]
[403133287,1769181784628,-1000.0,0.00012169,2]
[403133289,1769181841838,-500.0,0.00012047,2]
[403133290,1769181863202,-1000.0,0.00012047,2]
[403133291,1769181865079,-1000.0,0.00012047,2]
[403133292,1769181865429,-1000.0,0.00012047,2]
[403133293,1769181865776,-1000.0,0.00012047,2]
[403133294,1769181866107,-500.0,0.00012047,2]
[403133295,1769181879982,-158.34525812,0.00012108,2]
[403133296,1769181880004,-300.0,0.00012168,2]
[403133297,1769181880030,-541.65474188,0.00012169,2]
[403133298,1769181882875,-1000.0,0.00012169,2]
[403133299,1769181883845,-1000.0,0.00012169,2]
[403133300,1769181884373,-1000.0,0.00012047,2]
[403133301,1769181884570,-1000.0,0.00012047,2]
[403133302,1769181884952,-1000.0,0.00012047,2]
[403133303,1769181885289,-1000.0,0.00012047,2]
[403133304,1769181885722,-1000.0,0.00012047,2]
[403133305,1769181886088,-1000.0,0.00012169,2]
[403133306,1769181886419,-1000.0,0.00012169,2]
[403133307,1769181886808,-1000.0,0.00012169,2]
[403133308,1769181887180,-1000.0,0.00012169,2]
[403133309,1769181890216,-1000.0,0.00012169,2]
[403133310,1769181891267,-1000.0,0.00012169,2]
[403133311,1769181892286,-1000.0,0.00012169,2]
[403133312,1769181916287,4119.02425624,0.00011917,2]
[403133313,1769181916382,244.56411023,0.00011917,2]
[403133314,1769181923175,-1000.0,0.00012046,2]
[403133315,1769181924219,-1000.0,0.00012046,2]
[403133316,1769181925250,-1000.0,0.00012046,2]
[403133318,1769181937139,150.0,8.145e-05,2]
[403133319,1769181937534,293.23,8.885e-05,2]
[403133320,1769181937935,439.85,9.625e-05,2]
[403133321,1769181938333,586.46,0.00010366,2]
[403133322,1769181938725,733.08,0.00011106,2]
[403133323,1769181939146,879.69,0.00011847,2]
[403133324,1769181940691,-1000.0,0.00012046,2]
[403133325,1769181948615,-500.0,0.00012046,2]
[403133339,1769182015629,165.44,7.884e-05,2]
[403133340,1769182016046,330.88,8.601e-05,2]
[403133341,1769182016447,496.32,9.318e-05,2]
[403133342,1769182016848,661.76,0.00010035,2]
[403133343,1769182017267,827.2,0.00010752,2]
[403133344,1769182017695,992.64,0.00011468,2]
[403133367,1769182079183,-482.25858456,0.00011947,2]
[403133400,1769182083630,-182.37350716,0.00011947,2]
[403133401,1769182083655,-300.0,0.00011999,2]
[403133402,1769182083677,-247.56945044,0.00012,5]
[403133418,1769182086165,-176.89329581,0.00012,5]
[403133430,1769182088185,-207.50424573,0.00012,5]
[403133433,1769182091778,-307.2240708,0.00012,5]
[403133435,1769182092107,165.59,8.058e-05,2]
[403133437,1769182092544,331.17,8.791e-05,2]
[403133438,1769182093001,496.76,9.523e-05,2]
[403133439,1769182093380,662.34,0.00010256,2]
[403133440,1769182093792,827.93,0.00010989,2]
[403133441,1769182094201,715.10588977,0.00011721,2]
[403133442,1769182094287,278.40411023,0.00011721,2]
[403133443,1769182096540,-323.10670419,0.00012,5]
[403133444,1769182098033,-153.96684583,0.00012,5]
[403133446,1769182100850,5000.0,0.00011917,2]
[403133448,1769182123021,4721.60588977,0.00011917,2]
[403133449,1769182123109,278.39411023,0.00011917,2]
[403133455,1769182145271,5000.0,0.00011917,2]
[403133462,1769182170203,1253.80615783,0.00011917,2]
[403133463,1769182177263,236.01,0.00010534,2]
[403133464,1769182177670,472.03,0.00011492,2]
[403133509,1769182238000,-300.0,0.00011999,2]
[403133511,1769182238010,-300.0,0.00011999,2]
[403133513,1769182238019,-300.0,0.00011999,2]
[403133515,1769182238028,-1200.0,0.00011999,2]
[403133518,1769182238039,-589.0,0.00011999,2]
[403133521,1769182238050,-23103.20628524,0.00012,5]
[403133524,1769182238060,-216.73169809,0.00012035,2]
[403133527,1769182238070,-189.53596908,0.00012069,2]
[403133530,1769182238080,-1898.63811996,0.00012069,2]
[403133533,1769182238090,-6171.6331792,0.00012098,2]
[403133535,1769182238099,-49307.51150839,0.00012167,2]
[403133537,1769182238108,-500.0,0.00012167,2]
[403133539,1769182238118,-500.0,0.00012167,2]
[403133541,1769182238128,-500.0,0.00012167,2]
[403133543,1769182238139,-500.0,0.00012167,2]
[403133545,1769182238148,-215.57896218,0.00012167,2]
[403133547,1769182238158,-478.73989375,0.00012167,2]
[403133549,1769182238168,-500.0,0.00012167,2]
[403133551,1769182238178,-500.0,0.00012167,2]
[403133553,1769182238188,-500.0,0.00012167,2]
[403133555,1769182238197,-500.0,0.00012167,2]
[403133557,1769182238207,-75.34299272,0.00012167,2]
[403133560,1769182238218,-424.65700728,0.00012167,2]
[403133561,1769182238228,-500.0,0.00012167,2]
[403133564,1769182238238,-500.0,0.00012167,2]
[403133565,1769182238247,-258.01426305,0.00012167,2]
[403133677,1769182240177,-241.98573695,0.00012167,2]
[403133678,1769182240187,-500.0,0.00012167,2]
[403133679,1769182240196,-500.0,0.00012167,2]
[403133680,1769182240205,-500.0,0.00012167,2]
[403133681,1769182240214,-500.0,0.00012167,2]
[403133682,1769182240226,-500.0,0.00012167,2]
[403133683,1769182240235,-500.0,0.00012167,2]
[403133684,1769182240244,-500.0,0.00012167,2]
[403133685,1769182240253,-500.0,0.00012167,2]
[403133686,1769182240262,-312.58691903,0.00012167,2]
[403133687,1769182240271,-500.0,0.00012167,2]
[403133688,1769182240280,-500.0,0.00012167,2]
[403133689,1769182240290,-500.0,0.00012167,2]
[403133690,1769182240299,-500.0,0.00012167,2]
[403133691,1769182240309,-500.0,0.00012167,2]
[403133692,1769182240318,-500.0,0.00012167,2]
[403133693,1769182240327,-500.0,0.00012167,2]
[403133694,1769182240336,-500.0,0.00012167,2]
[403133695,1769182240345,-500.0,0.00012167,2]
[403133696,1769182240355,-500.0,0.00012167,2]
[403133697,1769182240365,-500.0,0.00012167,2]
[403133698,1769182240374,-500.0,0.00012167,2]
[403133699,1769182240383,-500.0,0.00012167,2]
[403133700,1769182240392,-500.0,0.00012167,2]
[403133701,1769182240402,-500.0,0.00012167,2]
[403133702,1769182240411,-500.0,0.00012167,2]
[403133703,1769182240420,-500.0,0.00012167,2]
[403133704,1769182240431,-500.0,0.00012167,2]
[403133705,1769182240440,-500.0,0.00012167,2]
[403133706,1769182240450,-500.0,0.00012167,2]
[403133707,1769182240459,-500.0,0.00012167,2]
[403133708,1769182240468,-500.0,0.00012167,2]
[403133709,1769182240478,-500.0,0.00012167,2]
[403133710,1769182240487,-500.0,0.00012167,2]
[403133711,1769182240497,-500.0,0.00012167,2]
[403133712,1769182240507,-500.0,0.00012167,2]
[403133713,1769182240516,-399.10101203,0.00012167,2]
[403133714,1769182240525,-500.0,0.00012167,2]
[403133715,1769182240535,-500.0,0.00012167,2]
[403133716,1769182240544,-500.0,0.00012167,2]
[403133717,1769182240553,-500.0,0.00012167,2]
[403133718,1769182240562,-500.0,0.00012167,2]
[403133719,1769182240572,-500.0,0.00012167,2]
[403133720,1769182240581,-500.0,0.00012167,2]
[403133721,1769182240591,-500.0,0.00012167,2]
[403133722,1769182240600,-500.0,0.00012167,2]
[403133723,1769182240609,-500.0,0.00012167,2]
[403133724,1769182240618,-500.0,0.00012167,2]
[403133725,1769182240627,-500.0,0.00012167,2]
[403133726,1769182240636,-173.32860401,0.00012167,2]
[403133727,1769182241568,-82.68471874,0.00012167,2]
[403133739,1769182243176,-265.87210666,0.00012167,2]
[403133740,1769182243186,-500.0,0.00012167,2]
[403133741,1769182243195,-500.0,0.00012167,2]
[403133742,1769182243205,-500.0,0.00012167,2]
[403133743,1769182243214,-289.05752508,0.00012167,2]
[403133745,1769182244072,-210.94247492,0.00012167,2]
[403133746,1769182244083,-500.0,0.00012167,2]
[403133747,1769182244092,-500.0,0.00012167,2]
[403133748,1769182244102,-500.0,0.00012167,2]
[403133749,1769182244112,-500.0,0.00012167,2]
[403133750,1769182244121,-500.0,0.00012167,2]
[403133751,1769182244131,-500.0,0.00012167,2]
[403133752,1769182244140,-257.67923642,0.00012167,2]
[403133753,1769182244150,-500.0,0.00012167,2]
[403133754,1769182244160,-500.0,0.00012167,2]
[403133755,1769182244169,-500.0,0.00012167,2]
[403133756,1769182244178,-500.0,0.00012167,2]
[403133757,1769182244187,-500.0,0.00012167,2]
[403133758,1769182244196,-500.0,0.00012167,2]
[403133759,1769182244205,-500.0,0.00012167,2]
[403133760,1769182244215,-500.0,0.00012167,2]
[403133761,1769182244226,-500.0,0.00012167,2]
[403133762,1769182244236,-500.0,0.00012167,2]
[403133763,1769182244245,-500.0,0.00012167,2]
[403133764,1769182244255,-500.0,0.00012167,2]
[403133765,1769182244264,-500.0,0.00012167,2]
[403133766,1769182244274,-500.0,0.00012167,2]
[403133767,1769182244283,-500.0,0.00012167,2]
[403133768,1769182244293,-500.0,0.00012167,2]
[403133769,1769182244302,-500.0,0.00012167,2]
[403133770,1769182244311,-500.0,0.00012167,2]
[403133771,1769182244320,-500.0,0.00012167,2]
[403133772,1769182244329,-597.00344913,0.00012167,2]
[403133773,1769182244339,-500.0,0.00012167,2]
[403133774,1769182244348,-500.0,0.00012167,2]
[403133775,1769182244358,-500.0,0.00012167,2]
[403133776,1769182244367,-500.0,0.00012167,2]
[403133777,1769182244377,-153.96684583,0.00012167,2]
[403133778,1769182244386,-500.0,0.00012167,2]
[403133779,1769182244395,-500.0,0.00012167,2]
[403133780,1769182244404,-500.0,0.00012167,2]
[403133781,1769182244413,-500.0,0.00012167,2]
[403133782,1769182244423,-500.0,0.00012167,2]
[403133783,1769182244432,-500.0,0.00012167,2]
[403133784,1769182244441,-500.0,0.00012167,2]
[403133785,1769182244449,-500.0,0.00012167,2]
[403133786,1769182244458,-500.0,0.00012167,2]
[403133787,1769182244467,-500.0,0.00012167,2]
[403133788,1769182244478,-500.0,0.00012167,2]
[403133789,1769182244487,-350.0,0.00012167,2]
[403133790,1769182244497,-500.0,0.00012167,2]
[403133791,1769182244506,-500.0,0.00012167,2]
[403133792,1769182244515,-500.0,0.00012167,2]
[403133793,1769182244524,-500.0,0.00012167,2]
[403133794,1769182244533,-500.0,0.00012167,2]
[403133795,1769182244542,-500.0,0.00012167,2]
[403133796,1769182244551,-500.0,0.00012167,2]
[403133797,1769182244560,-500.0,0.00012167,2]
[403133798,1769182244570,-500.0,0.00012167,2]
[403133799,1769182244579,-500.0,0.00012167,2]
[403133800,1769182244588,-151.0,0.00012169,2]
[403133801,1769182244597,-151.0,0.00012169,2]
[403133802,1769182244607,-151.0,0.00012169,2]
[403133803,1769182244616,-245.63081814,0.00012169,2]
[403133804,1769182244630,-300.0,0.00012411,2]
[403133805,1769182244639,-300.0,0.00012411,2]
[403133806,1769182244648,-300.0,0.00012411,2]
[403133807,1769182244657,-300.0,0.00012411,2]
[403133808,1769182244667,-300.0,0.00012411,2]
[403133809,1769182244675,-300.0,0.00012411,2]
[403133810,1769182244684,-300.0,0.00012411,2]
[403133811,1769182244693,-300.0,0.00012411,2]
[403133812,1769182244702,-300.0,0.00012411,2]
[403133813,1769182244711,-300.0,0.00012411,2]
[403133814,1769182244720,-300.0,0.00012411,2]
[403133815,1769182244731,-300.0,0.00012411,2]
[403133816,1769182244740,-300.0,0.00012411,2]
[403133817,1769182244749,-300.0,0.00012411,2]
[403133818,1769182244758,-300.0,0.00012411,2]
[403133819,1769182244767,-600.0,0.00012411,2]
[403133820,1769182244777,-708.04,0.00012449,2]
[403133821,1769182244786,-1377.0774996,0.00013069,2]
[403133822,1769182244795,-307.267523,0.00013286,2]
[403133823,1769182244804,-944.05,0.00013407,2]
[403133824,1769182244813,-720.0,0.00013653,2]
[403133825,1769182244822,-255.74340375,0.00014035,2]
[403133826,1769182244831,-1180.07,0.00014365,2]
[403133827,1769182244840,-155.0,0.00014646,2]
[403133828,1769182244849,-250.0,0.00014965,2]
[403133829,1769182244858,-864.0,0.00015018,2]
[403133830,1769182244871,-1416.08,0.00015322,2]
[403133831,1769182244880,-294.75510941,0.00016035,2]
[403133832,1769182244889,-1652.1,0.0001628,2]
[403133833,1769182244898,-178.0,0.00016285,2]
[403133834,1769182244909,-500.0,0.00016438,2]
[403133835,1769182244918,-410.61767968,0.00016438,2]
[403133836,1769182244927,-1000.0,0.0001652,2]
[403133837,1769182244937,-1888.11,0.00017238,2]
[403133838,1769182244946,-1041.66666667,0.00017298,2]
[403133839,1769182244956,-333.76681507,0.00018035,2]
[403133840,1769182244965,-1000.0,0.00018172,2]
[403133841,1769182244977,-244.0,0.00018172,2]
[403133842,1769182244988,-2124.12,0.00018195,2]
[403133843,1769182244998,-303.10001603,0.000189,2]
[403133844,1769182245008,-303.10001603,0.00019089,2]
[403133845,1769182245023,-2360.14,0.00019153,2]
[403133846,1769182245032,-506.69,0.00019178,2]
[403133847,1769182245041,-183.38,0.000192,2]
[403133848,1769182245050,-160.78,0.000192,2]
[403133849,1769182245060,-1426.35,0.000192,2]
[403133850,1769182245069,-303.10001603,0.00019278,2]
[403133851,1769182245079,-178.0,0.00019285,2]
[403133852,1769182245088,-1836.91,0.00019452,2]
[403133853,1769182245098,-303.10001603,0.00019467,2]
[403133854,1769182245107,-211.66041544,0.00019557,2]
[403133855,1769182245116,-303.10001567,0.00019656,2]
[403133856,1769182245126,-187.78006525,0.00019676,2]
[403133857,1769182245135,-194.72792766,0.00019676,2]
[403133858,1769182245144,-201.93286099,0.00019676,2]
[403133859,1769182245154,-591.13730662,0.00019676,2]
[403133860,1769182245163,-209.40437684,0.00019676,2]
[403133861,1769182245172,-217.15233878,0.00019676,2]
[403133862,1769182245181,-2487.15318209,0.00019676,2]
[403133863,1769182245191,-177.24161765,0.00019676,2]
[403133864,1769182245199,-225.18697532,0.00019676,2]
[403133865,1769182245209,-233.51889341,0.00019676,2]
[403133866,1769182245218,-242.15909246,0.00019676,2]
[403133867,1769182245227,-251.11897888,0.00019676,2]
[403133868,1769182245237,-260.4103811,0.00019676,2]
[403133869,1769182245246,-270.0455652,0.00019676,2]
[403133870,1769182245255,-280.03725112,0.00019676,2]
[403133871,1769182245263,-290.39862941,0.00019676,2]
[403133872,1769182245273,-301.1433787,0.00019676,2]
[403133873,1769182245283,-151.0,0.00019676,2]
[403133874,1769182245292,-169.65,0.000197,3]
[403133875,1769182245301,-1000.0,0.00019989,2]
[403133876,1769182245309,-492.0,0.00019989,2]
[403133877,1769182245318,-163760.86113466,0.0002,7]